fUSD/lending_fUSD_20260507
["ID","MTS","AMOUNT","RATE_DAILY","PERIOD"]
[421742814,1778089842000,-798.8970356,0.00035,120]
[421742783,1778089842000,-150.0,0.000342,7]
[421742810,1778089842000,-160.0,0.000349,57]
[421742811,1778089842000,-6233.02213847,0.000349,2]
[421742787,1778089842000,-579.0,0.0003421,30]
[421742784,1778089842000,-150.0,0.000342,7]
[421742785,1778089842000,-150.0,0.000342,7]
[421742786,1778089842000,-613.0,0.0003421,5]
[421742788,1778089842000,-527.0,0.00034221,30]
[421742795,1778089842000,-2000.0,0.00034234,2]
[421742796,1778089842000,-170.93898581,0.00034247,30]
[421742793,1778089842000,-208.0,0.00034221,30]
[421742791,1778089842000,-191.0,0.00034221,30]
[421742792,1778089842000,-158.0,0.00034221,30]
[421742790,1778089842000,-177.0,0.00034221,30]
[421742794,1778089842000,-183.66,0.0003423,2]
[421742789,1778089842000,-197.0,0.00034221,30]
[421742798,1778089842000,-4053.0,0.0003429,15]
[421742797,1778089842000,-507.0,0.00034281,9]
[421742808,1778089842000,-4053.0,0.00034837,15]
[421742806,1778089842000,-150.0,0.00034622,7]
[421742807,1778089842000,-1300.17478564,0.00034795,2]
[421742805,1778089842000,-4053.0,0.00034563,15]
[421742802,1778089842000,-152.13,0.00034544,60]
[421742809,1778089842000,-6387.62833805,0.0003485,2]
[421742812,1778089842000,-155.9917708,0.00035,120]
[421742845,1778089842000,-500.0,0.0003547,2]
[421742800,1778089842000,-3528.6499625,0.00034518,2]
[421742799,1778089842000,-271.12,0.00034438,120]
[421742804,1778089842000,-1518.19,0.00034544,60]
[421742883,1778089843000,-150.0,0.00036733,7]
[421742886,1778089843000,-160.0,0.000369,63]
[421742882,1778089843000,-183.0,0.00036708,2]
[421742881,1778089843000,-150.0,0.00036708,2]
[421742874,1778089843000,-1832.93,0.00036362,60]
[421742879,1778089843000,-150.0,0.00036708,2]
[421742885,1778089843000,-6387.62833805,0.0003687,2]
[421742880,1778089843000,-150.0,0.00036708,2]
[421742873,1778089843000,-150.0,0.00036311,7]
[421742887,1778089843000,-1414.7327993,0.00036986,60]
[421742884,1778089843000,-4053.0,0.00036751,15]
[421742897,1778089843000,-325.0,0.00037199,2]
[421742899,1778089843000,-527.0,0.00037221,30]
[421742896,1778089843000,-255.3672286,0.00037164,2]
[421742889,1778089843000,-4671.57,0.00037,2]
[421742895,1778089843000,-150.0,0.00037156,7]
[421742891,1778089843000,-320.83,0.00037006,30]
[421742888,1778089843000,-185.62,0.00036988,2]
[421742893,1778089843000,-152.0,0.00037106,5]
[421742892,1778089843000,-4053.0,0.00037025,15]
[421742894,1778089843000,-507.0,0.00037138,12]
[421742908,1778089843000,-150.0,0.00037578,7]
[421742898,1778089843000,-579.0,0.0003721,30]
[421742909,1778089843000,-350.0,0.00037588,2]
[421742875,1778089843000,-11111.73,0.00036362,60]
[421742890,1778089843000,-171.0,0.00037006,30]
[421742877,1778089843000,-4053.0,0.00036478,15]
[421742857,1778089843000,-798.8970356,0.00036,120]
[421742876,1778089843000,-271.12,0.00036438,120]
[421742902,1778089843000,-191.0,0.00037221,30]
[421742853,1778089843000,-160.0,0.000359,60]
[421742854,1778089843000,-500.0,0.0003593,2]
[421742848,1778089843000,-507.0,0.00035709,11]
[421742849,1778089843000,-200.0,0.00035709,30]
[421742847,1778089843000,-4053.0,0.00035657,15]
[421742851,1778089843000,-150.0,0.00035889,7]
[421742850,1778089843000,-6387.62833805,0.0003586,2]
[421742852,1778089843000,-150.0,0.00035899,2]
[421742860,1778089843000,-500.0,0.00036,2]
[421742859,1778089843000,-382.10203457,0.00036,120]
[421742865,1778089843000,-579.0,0.0003621,30]
[421742872,1778089843000,-5000.0,0.00036244,2]
[421742858,1778089843000,-1359.5547088,0.00036,120]
[421742861,1778089843000,-150.0,0.000361,7]
[421742856,1778089843000,-1633.46575908,0.00036,120]
[421742864,1778089843000,-4053.0,0.00036204,15]
[421742863,1778089843000,-300.12,0.000362,5]
[421742866,1778089843000,-527.0,0.00036221,30]
[421742862,1778089843000,-645.8,0.00036153,30]
[421742868,1778089843000,-177.0,0.00036221,30]
[421742878,1778089843000,-6233.02213847,0.00036567,2]
[421742867,1778089843000,-197.0,0.00036221,30]
[421742869,1778089843000,-191.0,0.00036221,30]
[421742870,1778089843000,-158.0,0.00036221,30]
[421742871,1778089843000,-208.0,0.00036221,30]
[421742855,1778089843000,-4053.0,0.00035931,15]
[421742900,1778089843000,-197.0,0.00037221,30]
[421742903,1778089843000,-208.0,0.00037221,30]
[421742962,1778089843000,-624.0,0.0003807,2]
[421742945,1778089843000,-151.0,0.00038,30]
[421742939,1778089843000,-151.0,0.00038,30]
[421742942,1778089843000,-151.0,0.00038,30]
[421742940,1778089843000,-151.0,0.00038,30]
[421742944,1778089843000,-151.0,0.00038,30]
[421742937,1778089843000,-19631.71,0.00038,7]
[421742938,1778089843000,-214.60306816,0.00038,7]
[421742936,1778089843000,-153.81,0.00038,30]
[421742934,1778089843000,-1000000.0,0.00038,120]
[421742943,1778089843000,-151.0,0.00038,30]
[421742941,1778089843000,-151.0,0.00038,30]
[421742949,1778089843000,-151.0,0.00038,7]
[421742946,1778089843000,-151.0,0.00038,30]
[421742959,1778089843000,-151.0,0.00038,7]
[421742950,1778089843000,-151.0,0.00038,7]
[421742954,1778089843000,-151.0,0.00038,7]
[421742952,1778089843000,-151.0,0.00038,7]
[421742958,1778089843000,-151.0,0.00038,7]
[421742953,1778089843000,-151.0,0.00038,7]
[421742957,1778089843000,-151.0,0.00038,7]
[421742956,1778089843000,-151.0,0.00038,7]
[421742951,1778089843000,-151.0,0.00038,7]
[421742955,1778089843000,-195.112562,0.00038,7]
[421742961,1778089843000,-3536.0,0.0003807,2]
[421742963,1778089843000,-1352.0,0.0003807,2]
[421742901,1778089843000,-177.0,0.00037221,30]
[421742960,1778089843000,-151.0,0.00038,7]
[421742947,1778089843000,-151.0,0.00038,30]
[421742948,1778089843000,-183.290217,0.00038,30]
[421742931,1778089843000,-150.0,0.00038,7]
[421742935,1778089843000,-554.93553063,0.00038,2]
[421742905,1778089843000,-197.0,0.00037315,120]
[421742907,1778089843000,-4053.0,0.00037572,15]
[421742906,1778089843000,-271.12,0.00037425,120]
[421742911,1778089843000,-350.0,0.00037588,2]
[421742921,1778089843000,-6387.62833805,0.0003788,2]
[421742910,1778089843000,-350.0,0.00037588,2]
[421742913,1778089843000,-350.0,0.00037588,2]
[421742914,1778089843000,-350.0,0.00037588,2]
[421742912,1778089843000,-350.0,0.00037588,2]
[421742916,1778089843000,-350.0,0.00037588,2]
[421742917,1778089843000,-360.0,0.00037588,2]
[421742920,1778089843000,-4053.0,0.00037845,15]
[421742915,1778089843000,-350.0,0.00037588,2]
[421742904,1778089843000,-4053.0,0.00037298,15]
[421742930,1778089843000,-150.55122366,0.00038,7]
[421742919,1778089843000,-150.0,0.00037694,2]
[421742932,1778089843000,-259.16287403,0.00038,7]
[421742928,1778089843000,-500.0,0.00037999,2]
[421742923,1778089843000,-160.0,0.000379,66]
[421742927,1778089843000,-500.0,0.00037999,2]
[421742933,1778089843000,-5172.74839054,0.00038,2]
[421742924,1778089843000,-381.40475695,0.0003799,2]
[421742929,1778089843000,-500.0,0.00037999,2]
[421742925,1778089843000,-193.05,0.0003799,2]
[421742922,1778089843000,-263.60331636,0.000379,2]
[421742918,1778089843000,-2000.0,0.00037658,2]
[421742926,1778089843000,-500.0,0.00037999,2]
[421742998,1778089844000,-526.86051061,0.00038207,2]
[421743004,1778089844000,-300.0,0.00038207,2]
[421743007,1778089844000,-472.4909776,0.00038207,2]
[421743006,1778089844000,-300.0,0.00038207,2]
[421743000,1778089844000,-891.9241332,0.00038207,2]
[421742989,1778089844000,-309.32134718,0.00038207,2]
[421742999,1778089844000,-1065.13491717,0.00038207,2]
[421742997,1778089844000,-300.0,0.00038207,2]
[421742995,1778089844000,-491.85958444,0.00038207,2]
[421742994,1778089844000,-300.0,0.00038207,2]
[421743005,1778089844000,-300.06118393,0.00038207,2]
[421742996,1778089844000,-603.45144378,0.00038207,2]
[421743001,1778089844000,-309.13065885,0.00038207,2]
[421743012,1778089844000,-343.40295571,0.00038207,2]
[421743002,1778089844000,-724.83131769,0.00038207,2]
[421743009,1778089844000,-593.93278454,0.00038207,2]
[421743019,1778089844000,-481.18706949,0.00038207,2]
[421743011,1778089844000,-300.00000001,0.00038207,2]
[421743010,1778089844000,-1793.38851355,0.00038207,2]
[421743020,1778089844000,-451.13853711,0.00038207,2]
[421743014,1778089844000,-1145.24599896,0.00038207,2]
[421743008,1778089844000,-852.7601399,0.00038207,2]
[421743018,1778089844000,-463.08064867,0.00038207,2]
[421743016,1778089844000,-862.96230178,0.00038207,2]
[421743013,1778089844000,-526.00966879,0.00038207,2]
[421743015,1778089844000,-309.07064608,0.00038207,2]
[421743003,1778089844000,-301.2859328,0.00038207,2]
[421742987,1778089844000,-300.0,0.00038207,2]
[421743017,1778089844000,-310.3725982,0.00038207,2]
[421742992,1778089844000,-1092.83356842,0.00038207,2]
[421742964,1778089844000,-1268.0,0.0003807,2]
[421742972,1778089844000,-300.0,0.00038207,2]
[421742968,1778089844000,-500.0,0.00038206,2]
[421742970,1778089844000,-300.06118393,0.00038207,2]
[421742966,1778089844000,-4053.0,0.00038119,15]
[421742967,1778089844000,-645.8,0.00038125,30]
[421742965,1778089844000,-417.0,0.0003807,2]
[421742971,1778089844000,-300.0,0.00038207,2]
[421742969,1778089844000,-300.0,0.00038207,2]
[421742973,1778089844000,-852.7601399,0.00038207,2]
[421742975,1778089844000,-300.0,0.00038207,2]
[421742974,1778089844000,-1793.38851355,0.00038207,2]
[421742986,1778089844000,-300.0,0.00038207,2]
[421742982,1778089844000,-463.08064867,0.00038207,2]
[421742978,1778089844000,-1145.24599896,0.00038207,2]
[421742980,1778089844000,-862.96230178,0.00038207,2]
[421742976,1778089844000,-343.40295571,0.00038207,2]
[421742979,1778089844000,-309.07064608,0.00038207,2]
[421742983,1778089844000,-481.18706949,0.00038207,2]
[421742981,1778089844000,-310.3725982,0.00038207,2]
[421742993,1778089844000,-300.0,0.00038207,2]
[421742985,1778089844000,-300.0,0.00038207,2]
[421742984,1778089844000,-451.13853711,0.00038207,2]
[421742990,1778089844000,-300.0,0.00038207,2]
[421742991,1778089844000,-300.0,0.00038207,2]
[421742988,1778089844000,-483.27319916,0.00038207,2]
[421742977,1778089844000,-526.00966879,0.00038207,2]
[421743021,1778089844000,-525.26004302,0.00038207,2]
[421743081,1778089844000,-483.27319916,0.00038207,2]
[421743026,1778089844000,-300.0,0.00038207,2]
[421743051,1778089844000,-451.13853711,0.00038207,2]
[421743050,1778089844000,-481.18706949,0.00038207,2]
[421743052,1778089844000,-300.0,0.00038207,2]
[421743059,1778089844000,-603.45144378,0.00038207,2]
[421743058,1778089844000,-491.85958444,0.00038207,2]
[421743070,1778089844000,-1793.38851355,0.00038207,2]
[421743069,1778089844000,-852.7601399,0.00038207,2]
[421743060,1778089844000,-300.0,0.00038207,2]
[421743065,1778089844000,-724.83131769,0.00038207,2]
[421743071,1778089844000,-343.40295571,0.00038207,2]
[421743068,1778089844000,-300.06118393,0.00038207,2]
[421743066,1778089844000,-301.2859328,0.00038207,2]
[421743053,1778089844000,-483.27319916,0.00038207,2]
[421743063,1778089844000,-891.9241332,0.00038207,2]
[421743062,1778089844000,-1065.13491717,0.00038207,2]
[421743064,1778089844000,-309.13065885,0.00038207,2]
[421743067,1778089844000,-300.0,0.00038207,2]
[421743072,1778089844000,-526.00966879,0.00038207,2]
[421743074,1778089844000,-309.07064608,0.00038207,2]
[421743073,1778089844000,-1145.24599896,0.00038207,2]
[421743075,1778089844000,-862.96230178,0.00038207,2]
[421743076,1778089844000,-310.3725982,0.00038207,2]
[421743077,1778089844000,-463.08064867,0.00038207,2]
[421743079,1778089844000,-451.13853711,0.00038207,2]
[421743080,1778089844000,-300.00000001,0.00038207,2]
[421743024,1778089844000,-483.27319916,0.00038207,2]
[421743061,1778089844000,-526.86051061,0.00038207,2]
[421743055,1778089844000,-314.68486883,0.00038207,2]
[421743078,1778089844000,-481.18706949,0.00038207,2]
[421743054,1778089844000,-309.32134718,0.00038207,2]
[421743047,1778089844000,-862.96230178,0.00038207,2]
[421743029,1778089844000,-491.85958444,0.00038207,2]
[421743028,1778089844000,-1092.83356842,0.00038207,2]
[421743023,1778089844000,-300.0,0.00038207,2]
[421743027,1778089844000,-300.0,0.00038207,2]
[421743022,1778089844000,-300.00000001,0.00038207,2]
[421743033,1778089844000,-1065.13491717,0.00038207,2]
[421743030,1778089844000,-603.45144378,0.00038207,2]
[421743031,1778089844000,-300.0,0.00038207,2]
[421743032,1778089844000,-526.86051061,0.00038207,2]
[421743037,1778089844000,-301.2859328,0.00038207,2]
[421743035,1778089844000,-309.13065885,0.00038207,2]
[421743034,1778089844000,-891.9241332,0.00038207,2]
[421743025,1778089844000,-309.32134718,0.00038207,2]
[421743038,1778089844000,-300.0,0.00038207,2]
[421743049,1778089844000,-463.08064867,0.00038207,2]
[421743057,1778089844000,-1092.83356842,0.00038207,2]
[421743056,1778089844000,-300.0,0.00038207,2]
[421743048,1778089844000,-310.3725982,0.00038207,2]
[421743036,1778089844000,-724.83131769,0.00038207,2]
[421743046,1778089844000,-309.07064608,0.00038207,2]
[421743045,1778089844000,-1145.24599896,0.00038207,2]
[421743043,1778089844000,-343.40295571,0.00038207,2]
[421743041,1778089844000,-852.7601399,0.00038207,2]
[421743044,1778089844000,-526.00966879,0.00038207,2]
[421743039,1778089844000,-300.06118393,0.00038207,2]
[421743040,1778089844000,-300.0,0.00038207,2]
[421743042,1778089844000,-1793.38851355,0.00038207,2]
[421743120,1778089845000,-300.0,0.00038207,2]
[421743119,1778089845000,-301.2859328,0.00038207,2]
[421743124,1778089845000,-458.05155388,0.00038207,2]
[421743123,1778089845000,-1793.38851355,0.00038207,2]
[421743110,1778089845000,-1092.83356842,0.00038207,2]
[421743118,1778089845000,-724.83131769,0.00038207,2]
[421743116,1778089845000,-891.9241332,0.00038207,2]
[421743117,1778089845000,-309.13065885,0.00038207,2]
[421743115,1778089845000,-1065.13491717,0.00038207,2]
[421743113,1778089845000,-350.43258181,0.00038207,2]
[421743114,1778089845000,-526.86051061,0.00038207,2]
[421743121,1778089845000,-300.06118393,0.00038207,2]
[421743136,1778089845000,-526.86051061,0.00038207,2]
[421743126,1778089845000,-1145.24599896,0.00038207,2]
[421743128,1778089845000,-862.96230178,0.00038207,2]
[421743125,1778089845000,-526.00966879,0.00038207,2]
[421743127,1778089845000,-309.07064608,0.00038207,2]
[421743133,1778089845000,-1092.83356842,0.00038207,2]
[421743135,1778089845000,-603.45144378,0.00038207,2]
[421743129,1778089845000,-310.3725982,0.00038207,2]
[421743132,1778089845000,-483.27319916,0.00038207,2]
[421743130,1778089845000,-463.08064867,0.00038207,2]
[421743131,1778089845000,-451.13853711,0.00038207,2]
[421743134,1778089845000,-491.85958444,0.00038207,2]
[421743108,1778089845000,-412.59380449,0.00038207,2]
[421743122,1778089845000,-1137.46951079,0.00038207,2]
[421743106,1778089845000,-451.13853711,0.00038207,2]
[421743097,1778089845000,-1793.38851355,0.00038207,2]
[421743104,1778089845000,-463.08064867,0.00038207,2]
[421743087,1778089845000,-300.0,0.00038207,2]
[421743083,1778089845000,-300.0,0.00038207,2]
[421743084,1778089845000,-1092.83356842,0.00038207,2]
[421743085,1778089845000,-491.85958444,0.00038207,2]
[421743086,1778089845000,-603.45144378,0.00038207,2]
[421743082,1778089845000,-309.32134718,0.00038207,2]
[421743088,1778089845000,-526.86051061,0.00038207,2]
[421743090,1778089845000,-891.9241332,0.00038207,2]
[421743137,1778089845000,-1065.13491717,0.00038207,2]
[421743091,1778089845000,-309.13065885,0.00038207,2]
[421743092,1778089845000,-724.83131769,0.00038207,2]
[421743093,1778089845000,-301.2859328,0.00038207,2]
[421743109,1778089845000,-583.40309849,0.00038207,2]
[421743089,1778089845000,-1065.13491717,0.00038207,2]
[421743095,1778089845000,-300.06118393,0.00038207,2]
[421743096,1778089845000,-852.7601399,0.00038207,2]
[421743098,1778089845000,-343.40295571,0.00038207,2]
[421743099,1778089845000,-526.00966879,0.00038207,2]
[421743101,1778089845000,-309.07064608,0.00038207,2]
[421743111,1778089845000,-491.85958444,0.00038207,2]
[421743112,1778089845000,-603.45144378,0.00038207,2]
[421743103,1778089845000,-310.3725982,0.00038207,2]
[421743102,1778089845000,-862.96230178,0.00038207,2]
[421743100,1778089845000,-1145.24599896,0.00038207,2]
[421743107,1778089845000,-483.27319916,0.00038207,2]
[421743105,1778089845000,-504.95241203,0.00038207,2]
[421743094,1778089845000,-300.0,0.00038207,2]
[421743141,1778089845000,-514.75111556,0.00038207,2]
[421743192,1778089845000,-309.07064609,0.00038207,2]
[421743140,1778089845000,-401.87682641,0.00038207,2]
[421743168,1778089845000,-300.0,0.00038207,2]
[421743165,1778089845000,-862.96230178,0.00038207,2]
[421743174,1778089845000,-300.0,0.00038207,2]
[421743184,1778089845000,-301.2859328,0.00038207,2]
[421743173,1778089845000,-364.85601286,0.00038207,2]
[421743176,1778089845000,-491.85958444,0.00038207,2]
[421743175,1778089845000,-300.0,0.00038207,2]
[421743177,1778089845000,-378.75079938,0.00038207,2]
[421743179,1778089845000,-300.0,0.00038207,2]
[421743178,1778089845000,-603.45144378,0.00038207,2]
[421743183,1778089845000,-309.13065885,0.00038207,2]
[421743182,1778089845000,-891.9241332,0.00038207,2]
[421743172,1778089845000,-300.0,0.00038207,2]
[421743180,1778089845000,-526.86051061,0.00038207,2]
[421743188,1778089845000,-852.7601399,0.00038207,2]
[421743187,1778089845000,-300.0,0.00038207,2]
[421743191,1778089845000,-1145.24599896,0.00038207,2]
[421743195,1778089845000,-617.69039735,0.00038207,2]
[421743190,1778089845000,-526.00966879,0.00038207,2]
[421743196,1778089845000,-300.0,0.00038207,2]
[421743186,1778089845000,-300.06118393,0.00038207,2]
[421743197,1778089845000,-481.18706949,0.00038207,2]
[421743189,1778089845000,-300.0,0.00038207,2]
[421743194,1778089845000,-413.99763904,0.00038207,2]
[421743193,1778089845000,-1151.07578849,0.00038207,2]
[421743139,1778089845000,-966.82993175,0.00038207,2]
[421743185,1778089845000,-514.75111556,0.00038207,2]
[421743167,1778089845000,-300.0,0.00038207,2]
[421743181,1778089845000,-1065.13491717,0.00038207,2]
[421743161,1778089845000,-300.00000001,0.00038207,2]
[421743148,1778089845000,-310.3725982,0.00038207,2]
[421743169,1778089845000,-483.27319916,0.00038207,2]
[421743138,1778089845000,-891.9241332,0.00038207,2]
[421743142,1778089845000,-300.06118393,0.00038207,2]
[421743144,1778089845000,-526.00966879,0.00038207,2]
[421743143,1778089845000,-598.74261569,0.00038207,2]
[421743146,1778089845000,-1145.24599896,0.00038207,2]
[421743145,1778089845000,-412.26115853,0.00038207,2]
[421743150,1778089845000,-601.76008021,0.00038207,2]
[421743151,1778089845000,-644.61899032,0.00038207,2]
[421743155,1778089845000,-300.0,0.00038207,2]
[421743149,1778089845000,-617.69039734,0.00038207,2]
[421743153,1778089845000,-491.85958444,0.00038207,2]
[421743147,1778089845000,-862.96230178,0.00038207,2]
[421743162,1778089845000,-526.00966879,0.00038207,2]
[421743154,1778089845000,-603.45144378,0.00038207,2]
[421743157,1778089845000,-1065.13491717,0.00038207,2]
[421743158,1778089845000,-891.9241332,0.00038207,2]
[421743156,1778089845000,-526.86051061,0.00038207,2]
[421743171,1778089845000,-300.0,0.00038207,2]
[421743159,1778089845000,-724.8313177,0.00038207,2]
[421743160,1778089845000,-309.13065885,0.00038207,2]
[421743164,1778089845000,-309.07064608,0.00038207,2]
[421743163,1778089845000,-382.36638413,0.00038207,2]
[421743166,1778089845000,-310.3725982,0.00038207,2]
[421743152,1778089845000,-364.85601286,0.00038207,2]
[421743170,1778089845000,-412.59380449,0.00038207,2]
[421743238,1778089846000,-363.12154269,0.00038207,2]
[421743224,1778089846000,-1092.83356842,0.00038207,2]
[421743237,1778089846000,-300.0,0.00038207,2]
[421743246,1778089846000,-427.44626578,0.00038207,2]
[421743240,1778089846000,-724.83131769,0.00038207,2]
[421743230,1778089846000,-1065.13491717,0.00038207,2]
[421743231,1778089846000,-1189.47495791,0.00038207,2]
[421743227,1778089846000,-495.86197898,0.00038207,2]
[421743228,1778089846000,-805.12639796,0.00038207,2]
[421743233,1778089846000,-301.2859328,0.00038207,2]
[421743242,1778089846000,-343.40295571,0.00038207,2]
[421743229,1778089846000,-702.62148053,0.00038207,2]
[421743245,1778089846000,-355.3339522,0.00038207,2]
[421743256,1778089846000,-526.00966879,0.00038207,2]
[421743243,1778089846000,-526.00966879,0.00038207,2]
[421743244,1778089846000,-300.0,0.00038207,2]
[421743248,1778089846000,-455.98999999,0.00038207,2]
[421743241,1778089846000,-300.0,0.00038207,2]
[421743247,1778089846000,-526.00966879,0.00038207,2]
[421743250,1778089846000,-526.00966879,0.00038207,2]
[421743260,1778089846000,-300.0,0.00038207,2]
[421743259,1778089846000,-526.00966879,0.00038207,2]
[421743249,1778089846000,-526.00966879,0.00038207,2]
[421743251,1778089846000,-526.00966879,0.00038207,2]
[421743254,1778089846000,-526.00966879,0.00038207,2]
[421743252,1778089846000,-526.00966879,0.00038207,2]
[421743234,1778089846000,-1793.38851355,0.00038207,2]
[421743239,1778089846000,-561.70948187,0.00038207,2]
[421743226,1778089846000,-655.94519935,0.00038207,2]
[421743198,1778089846000,-451.13853711,0.00038207,2]
[421743232,1778089846000,-724.83131769,0.00038207,2]
[421743209,1778089846000,-526.86051061,0.00038207,2]
[421743199,1778089846000,-300.0,0.00038207,2]
[421743255,1778089846000,-526.00966879,0.00038207,2]
[421743200,1778089846000,-483.27319916,0.00038207,2]
[421743201,1778089846000,-520.95563958,0.00038207,2]
[421743202,1778089846000,-364.85601286,0.00038207,2]
[421743210,1778089846000,-1065.13491717,0.00038207,2]
[421743205,1778089846000,-300.0,0.00038207,2]
[421743208,1778089846000,-603.45144378,0.00038207,2]
[421743206,1778089846000,-491.85958444,0.00038207,2]
[421743203,1778089846000,-300.0,0.00038207,2]
[421743207,1778089846000,-300.0,0.00038207,2]
[421743204,1778089846000,-393.77205544,0.00038207,2]
[421743236,1778089846000,-526.00966879,0.00038207,2]
[421743211,1778089846000,-891.9241332,0.00038207,2]
[421743213,1778089846000,-301.2859328,0.00038207,2]
[421743215,1778089846000,-300.0,0.00038207,2]
[421743216,1778089846000,-852.76013989,0.00038207,2]
[421743217,1778089846000,-1793.38851355,0.00038207,2]
[421743212,1778089846000,-374.55260864,0.00038207,2]
[421743218,1778089846000,-300.0,0.00038207,2]
[421743222,1778089846000,-481.18706949,0.00038207,2]
[421743221,1778089846000,-308.4709,0.00038207,2]
[421743220,1778089846000,-1145.24599896,0.00038207,2]
[421743219,1778089846000,-526.00966879,0.00038207,2]
[421743223,1778089846000,-451.13853711,0.00038207,2]
[421743225,1778089846000,-300.0,0.00038207,2]
[421743235,1778089846000,-343.40295571,0.00038207,2]
[421743214,1778089846000,-300.06118392,0.00038207,2]
[421743253,1778089846000,-526.00966879,0.00038207,2]
[421743261,1778089846000,-793.26858345,0.00038207,2]
[421743257,1778089846000,-526.00966879,0.00038207,2]
[421743296,1778089846000,-160.0,0.000389,69]
[421743292,1778089846000,-4089.0,0.00038666,30]
[421743294,1778089846000,-6387.62833805,0.0003889,2]
[421743297,1778089846000,-184.0,0.00038919,10]
[421743309,1778089846000,-400.0,0.00038978,2]
[421743300,1778089846000,-250.0,0.00038966,2]
[421743311,1778089846000,-400.0,0.00038978,2]
[421743310,1778089846000,-400.0,0.00038978,2]
[421743299,1778089846000,-250.0,0.00038966,2]
[421743302,1778089846000,-250.0,0.00038966,2]
[421743301,1778089846000,-250.0,0.00038966,2]
[421743303,1778089846000,-250.0,0.00038966,2]
[421743306,1778089846000,-250.0,0.00038966,2]
[421743293,1778089846000,-960.22239568,0.00038697,103]
[421743308,1778089846000,-400.0,0.00038978,2]
[421743307,1778089846000,-176.0,0.00038966,2]
[421743304,1778089846000,-250.0,0.00038966,2]
[421743312,1778089846000,-400.0,0.00038978,2]
[421743313,1778089846000,-400.0,0.00038978,2]
[421743317,1778089846000,-229.0,0.00038978,2]
[421743314,1778089846000,-400.0,0.00038978,2]
[421743315,1778089846000,-400.0,0.00038978,2]
[421743316,1778089846000,-400.0,0.00038978,2]
[421743318,1778089846000,-4122.0,0.00038983,30]
[421743320,1778089846000,-4375.55153631,0.00039,120]
[421743319,1778089846000,-59745.80072533,0.00039,120]
[421743321,1778089846000,-250.0,0.00039,7]
[421743258,1778089846000,-300.0,0.00038207,2]
[421743305,1778089846000,-250.0,0.00038966,2]
[421743295,1778089846000,-163.9,0.000389,120]
[421743291,1778089846000,-345.0,0.00038612,2]
[421743288,1778089846000,-250.0,0.00038612,2]
[421743262,1778089846000,-300.0,0.00038207,2]
[421743264,1778089846000,-265.39,0.00038276,60]
[421743265,1778089846000,-250.5044,0.00038351,2]
[421743267,1778089846000,-2829.46559858,0.00038356,30]
[421743263,1778089846000,-6233.02213847,0.00038233,2]
[421743272,1778089846000,-1494.13,0.000385,60]
[421743266,1778089846000,-172.2918,0.00038351,2]
[421743273,1778089846000,-155.0,0.000385,120]
[421743274,1778089846000,-153.81,0.000385,30]
[421743268,1778089846000,-2000.0,0.00038356,120]
[421743298,1778089846000,-308.0,0.0003894,2]
[421743269,1778089846000,-4053.0,0.00038392,30]
[421743271,1778089846000,-1494.13,0.000385,120]
[421743276,1778089846000,-150.0,0.00038527,2]
[421743270,1778089846000,-1324.948,0.000385,60]
[421743275,1778089846000,-258.0,0.000385,120]
[421743290,1778089846000,-250.0,0.00038612,2]
[421743286,1778089846000,-250.0,0.00038612,2]
[421743287,1778089846000,-250.0,0.00038612,2]
[421743284,1778089846000,-250.0,0.00038612,2]
[421743282,1778089846000,-1086.33344305,0.000386,100]
[421743283,1778089846000,-19631.71,0.000386,7]
[421743280,1778089846000,-263.60331632,0.00038534,2]
[421743281,1778089846000,-507.0,0.00038567,14]